fUST/lending_fUST_20250628
["ID","MTS","AMOUNT","RATE_DAILY","PERIOD"]
[368316028,1751113846019,-529.3,0.0002,2]
[368316029,1751113846029,-460.0,0.0002,2]
[368316030,1751113846038,-3233.96,0.0002,2]
[368316031,1751113846048,-460.0,0.0002,2]
[368316032,1751113846057,-534.96,0.0002,2]
[368316033,1751113846066,-460.0,0.0002,2]
[368316034,1751113846075,-884.05,0.0002,2]
[368316035,1751113846085,-460.0,0.0002,2]
[368316036,1751113846095,-876.74,0.0002,2]
[368316037,1751113846104,-793.43,0.0002,2]
[368316038,1751113846114,-460.0,0.0002,2]
[368316039,1751113846124,-1147.58,0.0002,2]
[368316040,1751113846133,-460.0,0.0002,2]
[368316041,1751113846143,-460.0,0.0002,2]
[368316042,1751113846152,-1686.67,0.0002,2]
[368316043,1751113846161,-506.82,0.0002,2]
[368316044,1751113846170,-160.0,0.00020068,2]
[368316045,1751113846179,-160.0,0.00020068,2]
[368316046,1751113846189,-160.0,0.00020068,2]
[368316047,1751113846198,-230.28494567,0.00020068,2]
[368316048,1751113846207,-160.0,0.00020068,2]
[368316049,1751113846217,-214.95397287,0.00020068,2]
[368316050,1751113846227,-12564.78152626,0.00020068,2]
[368316051,1751113846236,-213.78848551,0.00020068,2]
[368316052,1751113846246,-160.0,0.00020068,2]
[368316053,1751113846255,-847.18566335,0.00020068,2]
[368316054,1751113846268,-837.06984471,0.00020068,2]
[368316055,1751113846277,-160.0,0.00020069,2]
[368316056,1751113846287,-6069.56233127,0.00020107,2]
[368316057,1751113846296,-290.113146,0.00020187,2]
[368316058,1751113846306,-261.0,0.00020216,2]
[368316059,1751113846315,-1000.0,0.00020248,2]
[368316060,1751113846324,-1000.0,0.00020248,2]
[368316061,1751113846334,-1000.0,0.0002027,2]
[368316062,1751113846343,-1000.0,0.0002027,2]
[368316063,1751113846352,-175.00328661,0.00020273,2]
[368316064,1751113846362,-474.47,0.00020273,2]
[368316065,1751113846371,-460.0,0.00020273,2]
[368316066,1751113846381,-460.0,0.00020273,2]
[368316067,1751113846390,-460.0,0.00020273,2]
[368316068,1751113846399,-583.49,0.00020273,2]
[368316069,1751113846408,-460.0,0.00020273,2]
[368316070,1751113846417,-460.0,0.00020273,2]
[368316071,1751113846428,-460.0,0.00020273,2]
[368316072,1751113846437,-460.0,0.00020273,2]
[368316073,1751113846446,-460.0,0.00020273,2]
[368316074,1751113846456,-531.42,0.00020273,2]
[368316075,1751113846466,-512.79881809,0.00020273,2]
[368316076,1751113846475,-460.0,0.00020273,2]
[368316077,1751113846485,-460.0,0.00020273,2]
[368316078,1751113846495,-621.93,0.00020273,2]
[368316079,1751113846504,-460.0,0.00020273,2]
[368316080,1751113846514,-460.0,0.00020273,2]
[368316081,1751113846523,-447.8459424,0.00020273,2]
[368316082,1751113846533,-460.0,0.00020273,2]
[368316083,1751113846542,-460.0,0.00020273,2]
[368316085,1751113846551,-167.8195284,0.00020273,2]
[368316086,1751113846562,-460.0,0.00020273,2]
[368316087,1751113846571,-1357.73,0.00020273,2]
[368316088,1751113846580,-460.0,0.00020273,2]
[368316089,1751113846590,-460.0,0.00020273,2]
[368316090,1751113846599,-530.27,0.00020273,2]
[368316091,1751113846609,-460.0,0.00020273,2]
[368316092,1751113846618,-460.0,0.00020273,2]
[368316093,1751113846627,-460.0,0.00020273,2]
[368316094,1751113846638,-1781.31,0.00020273,2]
[368316095,1751113846647,-460.0,0.00020273,2]
[368316096,1751113846657,-2128.05,0.00020273,2]
[368316097,1751113846667,-460.0,0.00020273,2]
[368316098,1751113846676,-422.56773258,0.00020273,2]
[368316099,1751113846686,-460.0,0.00020273,2]
[368316100,1751113846696,-490.69,0.00020273,2]
[368316101,1751113846706,-646.64,0.00020273,2]
[368316102,1751113846715,-662.77,0.00020273,2]
[368316103,1751113846726,-460.0,0.00020273,2]
[368316104,1751113846735,-433.46174028,0.00020273,2]
[368316105,1751113846745,-498.27,0.00020273,2]
[368316106,1751113846754,-460.0,0.00020273,2]
[368316107,1751113846763,-460.0,0.00020273,2]
[368316108,1751113846773,-460.0,0.00020273,2]
[368316109,1751113846782,-460.0,0.00020273,2]
[368316110,1751113846791,-460.0,0.00020273,2]
[368316111,1751113846800,-460.0,0.00020273,2]
[368316112,1751113846810,-460.0,0.00020273,2]
[368316113,1751113846820,-460.0,0.00020273,2]
[368316114,1751113846829,-460.0,0.00020273,2]
[368316115,1751113846839,-460.0,0.00020273,2]
[368316116,1751113846848,-460.0,0.00020273,2]
[368316117,1751113846857,-2022.05,0.00020273,2]
[368316118,1751113846867,-1926.56,0.00020273,2]
[368316119,1751113846877,-2108.22,0.00020273,2]
[368316120,1751113846886,-822.42,0.00020273,2]
[368316121,1751113846895,-460.0,0.00020273,2]
[368316122,1751113846904,-911.57,0.00020273,2]
[368316123,1751113846913,-460.0,0.00020273,2]
[368316124,1751113846922,-2378.24,0.00020273,2]
[368316125,1751113846932,-460.0,0.00020273,2]
[368316126,1751113846941,-460.0,0.00020273,2]
[368316127,1751113846950,-460.0,0.00020273,2]
[368316128,1751113846960,-460.0,0.00020273,2]
[368316129,1751113846969,-460.0,0.00020273,2]
[368316130,1751113846979,-1651.1,0.00020273,2]
[368316131,1751113846989,-460.0,0.00020273,2]
[368316132,1751113846998,-460.0,0.00020273,2]
[368316133,1751113847007,-625.47,0.00020273,2]
[368316134,1751113847016,-3353.92,0.00020273,2]
[368316135,1751113847027,-460.0,0.00020273,2]
[368316136,1751113847036,-460.0,0.00020273,2]
[368316137,1751113847045,-460.0,0.00020273,2]
[368316138,1751113847054,-213.87,0.00020273,2]
[368316139,1751113847064,-460.0,0.00020273,2]
[368316140,1751113847073,-460.0,0.00020273,2]
[368316141,1751113847082,-1496.49,0.00020273,2]
[368316142,1751113847091,-514.25,0.00020273,2]
[368316143,1751113847101,-1287.89,0.00020273,2]
[368316144,1751113847111,-1504.01,0.00020273,2]
[368316145,1751113847120,-460.0,0.00020273,2]
[368316146,1751113847130,-965.07,0.00020273,2]
[368316147,1751113847139,-1081.41,0.00020273,2]
[368316148,1751113847149,-460.0,0.00020273,2]
[368316149,1751113847159,-518.05,0.00020273,2]
[368316150,1751113847168,-460.0,0.00020273,2]
[368316151,1751113847178,-529.3,0.00020273,2]
[368316152,1751113847188,-460.0,0.00020273,2]
[368316153,1751113847198,-3233.96,0.00020273,2]
[368316154,1751113847208,-460.0,0.00020273,2]
[368316155,1751113847218,-534.96,0.00020273,2]
[368316156,1751113847227,-460.0,0.00020273,2]
[368316157,1751113847236,-884.05,0.00020273,2]
[368316158,1751113847247,-460.0,0.00020273,2]
[368316159,1751113847258,-876.74,0.00020273,2]
[368316160,1751113847268,-460.0,0.00020273,2]
[368316161,1751113847278,-793.43,0.00020273,2]
[368316162,1751113847287,-1147.58,0.00020273,2]
[368316163,1751113847297,-460.0,0.00020273,2]
[368316164,1751113847306,-1686.67,0.00020273,2]
[368316165,1751113847316,-506.82,0.00020273,2]
[368316166,1751113847325,-153.0,0.00020301,2]
[368316167,1751113847336,-153.0,0.00020301,2]
[368316168,1751113847346,-153.0,0.00020301,2]
[368316169,1751113847356,-153.0,0.00020301,2]
[368316170,1751113847366,-153.0,0.00020301,2]
[368316171,1751113847375,-153.0,0.00020301,2]
[368316172,1751113847385,-153.0,0.00020301,2]
[368316173,1751113847394,-153.0,0.00020301,2]
[368316174,1751113847403,-6069.56233127,0.00020314,3]
[368316175,1751113847412,-285.0,0.00020339,2]
[368316176,1751113847423,-285.0,0.00020357,2]
[368316177,1751113847432,-500.0,0.00020358,2]
[368316178,1751113847441,-261.0,0.00020494,2]
[368316179,1751113847451,-185.38818488,0.000205,2]
[368316180,1751113847460,-160.0,0.00020521,3]
[368316181,1751113847470,-213.78848551,0.00020521,3]
[368316182,1751113847479,-12564.78152626,0.00020521,3]
[368316183,1751113847488,-6069.56233127,0.00020521,3]
[368316184,1751113847498,-847.18566335,0.00020521,3]
[368316185,1751113847507,-3281.56,0.00020538,3]
[368316186,1751113847516,-1640.78,0.00020538,3]
[368316187,1751113847527,-820.38,0.00020538,3]
[368316188,1751113847536,-410.2,0.00020538,3]
[368316189,1751113847545,-474.47,0.00020547,2]
[368316190,1751113847555,-500.0,0.00020547,14]
[368316191,1751113847563,-460.0,0.00020547,2]
[368316192,1751113847572,-460.0,0.00020547,2]
[368316193,1751113847582,-460.0,0.00020547,2]
[368316194,1751113847591,-460.0,0.00020547,2]
[368316195,1751113847601,-460.0,0.00020547,2]
[368316196,1751113847612,-460.0,0.00020547,2]
[368316197,1751113847623,-460.0,0.00020547,2]
[368316198,1751113847632,-531.42,0.00020547,2]
[368316199,1751113847642,-460.0,0.00020547,2]
[368316200,1751113847651,-460.0,0.00020547,2]
[368316201,1751113847660,-621.93,0.00020547,2]
[368316202,1751113847670,-460.0,0.00020547,2]
[368316203,1751113847679,-460.0,0.00020547,2]
[368316204,1751113847688,-460.0,0.00020547,2]
[368316205,1751113847697,-460.0,0.00020547,2]
[368316206,1751113847707,-460.0,0.00020547,2]
[368316207,1751113847716,-1357.73,0.00020547,2]
[368316208,1751113847725,-460.0,0.00020547,2]
[368316209,1751113847734,-460.0,0.00020547,2]
[368316210,1751113847744,-530.27,0.00020547,2]
[368316211,1751113847755,-460.0,0.00020547,2]
[368316212,1751113847764,-460.0,0.00020547,2]
[368316213,1751113847773,-460.0,0.00020547,2]
[368316214,1751113847783,-1781.31,0.00020547,2]
[368316215,1751113847792,-460.0,0.00020547,2]
[368316216,1751113847801,-2128.05,0.00020547,2]
[368316217,1751113847811,-460.0,0.00020547,2]
[368316218,1751113847820,-460.0,0.00020547,2]
[368316219,1751113847830,-490.69,0.00020547,2]
[368316220,1751113847840,-646.64,0.00020547,2]
[368316221,1751113847849,-662.77,0.00020547,2]
[368316222,1751113847859,-498.27,0.00020547,2]
[368316223,1751113847868,-460.0,0.00020547,2]
[368316224,1751113847877,-460.0,0.00020547,2]
[368316225,1751113847887,-460.0,0.00020547,2]
[368316226,1751113847897,-460.0,0.00020547,2]
[368316227,1751113847906,-460.0,0.00020547,2]
[368316228,1751113847916,-460.0,0.00020547,2]
[368316229,1751113847925,-460.0,0.00020547,2]
[368316230,1751113847934,-460.0,0.00020547,2]
[368316231,1751113847944,-460.0,0.00020547,2]
[368316232,1751113847953,-460.0,0.00020547,2]
[368316233,1751113847963,-460.0,0.00020547,2]
[368316234,1751113847973,-2022.05,0.00020547,2]
[368316235,1751113847983,-1926.56,0.00020547,2]
[368316236,1751113847994,-2108.22,0.00020547,2]
[368316237,1751113848003,-822.42,0.00020547,2]
[368316238,1751113848012,-460.0,0.00020547,2]
[368316239,1751113848022,-911.57,0.00020547,2]
[368316240,1751113848031,-460.0,0.00020547,2]
[368316241,1751113848040,-2378.24,0.00020547,2]
[368316242,1751113848050,-460.0,0.00020547,2]
[368316243,1751113848059,-460.0,0.00020547,2]
[368316244,1751113848069,-460.0,0.00020547,2]
[368316245,1751113848078,-460.0,0.00020547,2]
[368316246,1751113848088,-460.0,0.00020547,2]
[368316247,1751113848097,-1651.1,0.00020547,2]
[368316248,1751113848106,-460.0,0.00020547,2]
[368316249,1751113848115,-460.0,0.00020547,2]
[368316250,1751113848124,-625.47,0.00020547,2]
[368316251,1751113848134,-3353.92,0.00020547,2]
[368316252,1751113848144,-460.0,0.00020547,2]
[368316253,1751113848153,-460.0,0.00020547,2]
[368316254,1751113848163,-460.0,0.00020547,2]
[368316255,1751113848380,-460.0,0.00020547,2]
[368316256,1751113848390,-460.0,0.00020547,2]
[368316257,1751113848399,-1496.49,0.00020547,2]
[368316258,1751113848410,-514.25,0.00020547,2]
[368316259,1751113848419,-1287.89,0.00020547,2]
[368316260,1751113848428,-1504.01,0.00020547,2]
[368316261,1751113848437,-460.0,0.00020547,2]
[368316262,1751113848447,-965.07,0.00020547,2]
[368316263,1751113848457,-304.493631,0.00020547,2]
[368316264,1751113848466,-1081.41,0.00020547,2]
[368316265,1751113848475,-304.493631,0.00020547,2]
[368316266,1751113848485,-460.0,0.00020547,2]
[368316267,1751113848494,-518.05,0.00020547,2]
[368316268,1751113848504,-400.23497975,0.00020547,2]
[368316269,1751113848638,-529.3,0.00020547,2]
[368316270,1751113848648,-460.0,0.00020547,2]
[368316271,1751113848657,-3233.96,0.00020547,2]
[368316272,1751113848667,-460.0,0.00020547,2]
[368316273,1751113848676,-534.96,0.00020547,2]
[368316274,1751113848686,-460.0,0.00020547,2]
[368316275,1751113848695,-884.05,0.00020547,2]
[368316276,1751113848705,-460.0,0.00020547,2]
[368316277,1751113848714,-876.74,0.00020547,2]
[368316278,1751113848725,-460.0,0.00020547,2]
[368316279,1751113848735,-793.43,0.00020547,2]
[368316280,1751113848744,-1147.58,0.00020547,2]
[368316281,1751113848754,-460.0,0.00020547,2]
[368316282,1751113848763,-1686.67,0.00020547,2]
[368316283,1751113848772,-506.82,0.00020547,2]
[368316284,1751113848782,-383.83715632,0.00020585,2]
[368316285,1751113848791,-3033.2,0.000206,2]
[368316286,1751113848801,-439.0,0.00020651,2]
[368316287,1751113848810,-261.0,0.00020682,2]
[368316288,1751113848819,-454.028,0.00020702,2]
[368316289,1751113848829,-151.0,0.00020702,2]
[368316290,1751113848838,-151.0,0.00020702,2]
[368316291,1751113848847,-151.0,0.00020702,2]
[368316292,1751113848857,-6069.56233127,0.00020728,3]
[368316293,1751113848867,-151.0,0.00020728,2]
[368316294,1751113848876,-151.0,0.00020728,2]
[368316295,1751113848885,-151.0,0.00020728,2]
[368316296,1751113848895,-261.0,0.00020753,2]
[368316297,1751113848904,-5000.0,0.00020755,2]
[368316298,1751113848913,-500.0,0.00020755,2]
[368316299,1751113848923,-200.0,0.00020755,2]
[368316300,1751113848932,-500.0,0.00020755,2]
[368316301,1751113848941,-200.0,0.00020755,2]
[368316302,1751113848951,-200.0,0.00020755,2]
[368316303,1751113848960,-500.0,0.00020755,2]
[368316304,1751113848970,-200.0,0.00020755,2]
[368316305,1751113848979,-500.0,0.00020755,2]
[368316306,1751113848991,-304.68614075,0.00020755,2]
[368316307,1751113849000,-500.0,0.00020755,2]
[368316308,1751113849010,-500.0,0.00020755,2]
[368316309,1751113849020,-207.4,0.00020755,2]
[368316310,1751113849029,-500.0,0.00020755,2]
[368316311,1751113849038,-500.0,0.00020755,2]
[368316312,1751113849048,-500.0,0.00020755,2]
[368316313,1751113849057,-500.0,0.00020755,2]
[368316314,1751113849068,-500.0,0.00020755,2]
[368316315,1751113849078,-500.0,0.00020755,2]
[368316316,1751113849088,-500.0,0.00020755,2]
[368316317,1751113849097,-500.0,0.00020755,2]
[368316318,1751113849107,-500.0,0.00020755,2]
[368316319,1751113849116,-500.0,0.00020755,2]
[368316320,1751113849126,-500.0,0.00020755,2]
[368316321,1751113849135,-500.0,0.00020755,2]
[368316322,1751113849145,-319.969904,0.00020755,2]
[368316323,1751113849155,-319.969904,0.00020755,2]
[368316324,1751113849164,-151.0,0.00020755,2]
[368316325,1751113849173,-486.523137,0.00020755,2]
[368316326,1751113849183,-486.523137,0.00020755,2]
[368316327,1751113849193,-154.712361,0.00020755,2]
[368316328,1751113849202,-154.712361,0.00020755,2]
[368316329,1751113849212,-1500.0,0.00020796,2]
[368316330,1751113849222,-1500.0,0.00020796,2]
[368316331,1751113849232,-1500.0,0.00020818,2]
[368316332,1751113849241,-1500.0,0.00020818,2]
[368316333,1751113849251,-474.47,0.00020821,2]
[368316334,1751113849264,-460.0,0.00020821,2]
[368316335,1751113849274,-460.0,0.00020821,2]
[368316336,1751113849283,-460.0,0.00020821,2]
[368316337,1751113849293,-460.0,0.00020821,2]
[368316338,1751113849304,-151.0,0.00020821,2]
[368316339,1751113849314,-244.60110214,0.00020821,2]
[368316340,1751113849324,-460.0,0.00020821,2]
[368316341,1751113849335,-407.76415195,0.00020821,2]
[368316342,1751113849345,-531.42,0.00020821,2]
[368316343,1751113849356,-460.0,0.00020821,2]
[368316344,1751113849366,-174.58661708,0.00020821,2]
[368316345,1751113849375,-621.93,0.00020821,2]
[368316346,1751113849385,-460.0,0.00020821,2]
[368316347,1751113849394,-334.701529,0.00020821,2]
[368316348,1751113849403,-334.701529,0.00020821,2]
[368316349,1751113849413,-210.823943,0.00020821,2]
[368316350,1751113849423,-210.823943,0.00020821,2]
[368316351,1751113849433,-151.0,0.00020821,2]
[368316352,1751113849442,-557.69,0.00020821,2]
[368316353,1751113849452,-460.0,0.00020821,2]
[368316354,1751113849461,-460.0,0.00020821,2]
[368316355,1751113849471,-1357.73,0.00020821,2]
[368316356,1751113849480,-189.187077,0.00020821,2]
[368316357,1751113849490,-189.187077,0.00020821,2]
[368316358,1751113849499,-460.0,0.00020821,2]
[368316359,1751113849508,-530.27,0.00020821,2]
[368316360,1751113849517,-152.392807,0.00020821,2]
[368316361,1751113849527,-460.0,0.00020821,2]
[368316362,1751113849538,-460.0,0.00020821,2]
[368316363,1751113849547,-460.0,0.00020821,2]
[368316364,1751113849557,-1781.31,0.00020821,2]
[368316365,1751113849567,-460.0,0.00020821,2]
[368316366,1751113849576,-291.251075,0.00020821,2]
[368316367,1751113849585,-2128.05,0.00020821,2]
[368316368,1751113849594,-417.86098524,0.00020821,2]
[368316369,1751113849605,-291.251075,0.00020821,2]
[368316370,1751113849615,-460.0,0.00020821,2]
[368316371,1751113849624,-490.69,0.00020821,2]
[368316372,1751113849634,-646.64,0.00020821,2]
[368316373,1751113849643,-662.77,0.00020821,2]
[368316374,1751113849653,-498.27,0.00020821,2]
[368316375,1751113849662,-460.0,0.00020821,2]
[368316376,1751113849672,-460.0,0.00020821,2]
[368316377,1751113849681,-151.0,0.00020821,2]
[368316378,1751113849690,-460.0,0.00020821,2]
[368316379,1751113849699,-460.0,0.00020821,2]
[368316380,1751113849709,-460.0,0.00020821,2]
[368316381,1751113849718,-460.0,0.00020821,2]
[368316382,1751113849727,-460.0,0.00020821,2]
[368316383,1751113849736,-460.0,0.00020821,2]
[368316384,1751113849745,-460.0,0.00020821,2]
[368316385,1751113849755,-460.0,0.00020821,2]
[368316386,1751113849764,-460.0,0.00020821,2]
[368316387,1751113849774,-2022.05,0.00020821,2]
[368316388,1751113849783,-1926.56,0.00020821,2]
[368316389,1751113849792,-2108.22,0.00020821,2]
[368316390,1751113849801,-822.42,0.00020821,2]
[368316391,1751113849810,-155.07303576,0.00020821,2]
[368316392,1751113849820,-911.57,0.00020821,2]
[368316393,1751113849829,-460.0,0.00020821,2]
[368316394,1751113849838,-2378.24,0.00020821,2]
[368316395,1751113849847,-460.0,0.00020821,2]
[368316396,1751113849856,-460.0,0.00020821,2]
[368316397,1751113849866,-460.0,0.00020821,2]
[368316398,1751113849875,-460.0,0.00020821,2]
[368316399,1751113849884,-460.0,0.00020821,2]
[368316400,1751113849894,-1651.1,0.00020821,2]
[368316401,1751113849913,-460.0,0.00020821,2]
[368316402,1751113849923,-460.0,0.00020821,2]
[368316403,1751113849933,-625.47,0.00020821,2]
[368316404,1751113849942,-3353.92,0.00020821,2]
[368316405,1751113849952,-460.0,0.00020821,2]
[368316406,1751113849961,-460.0,0.00020821,2]
[368316407,1751113849972,-460.0,0.00020821,2]
[368316408,1751113849983,-460.0,0.00020821,2]
[368316409,1751113849992,-460.0,0.00020821,2]
[368316410,1751113850002,-1496.49,0.00020821,2]
[368316411,1751113850012,-416.28943397,0.00020821,2]
[368316412,1751113850236,-251.28912301,0.00019726,2]
[368316413,1751113850807,-460.0,0.00019178,2]
[368316414,1751113850817,-460.0,0.00019178,2]
[368316415,1751113850826,-208.71087699,0.00019726,2]
[368316416,1751113850836,-460.0,0.0002,2]
[368316417,1751113850845,-460.0,0.00020273,2]
[368316418,1751113850855,-460.0,0.00020547,2]
[368316419,1751113850865,-97.96056603,0.00020821,2]
[368316420,1751113850875,-1287.89,0.00020821,2]
[368316421,1751113850884,-1504.01,0.00020821,2]
[368316422,1751113850894,-965.07,0.00020821,2]
[368316423,1751113850903,-1081.41,0.00020821,2]
[368316424,1751113850912,-460.0,0.00020821,2]
[368316425,1751113850922,-518.05,0.00020821,2]
[368316426,1751113850931,-529.3,0.00020821,2]
[368316427,1751113850941,-460.0,0.00020821,2]
[368316428,1751113850950,-3233.96,0.00020821,2]
[368316429,1751113850960,-460.0,0.00020821,2]
[368316430,1751113850973,-534.96,0.00020821,2]
[368316431,1751113850982,-460.0,0.00020821,2]
[368316432,1751113850992,-884.05,0.00020821,2]
[368316433,1751113851001,-460.0,0.00020821,2]
[368316434,1751113851145,-876.74,0.00020821,2]
[368316435,1751113851156,-460.0,0.00020821,2]
[368316436,1751113851165,-793.43,0.00020821,2]
[368316437,1751113851175,-1147.58,0.00020821,2]
[368316438,1751113851184,-460.0,0.00020821,2]
[368316439,1751113851194,-1686.67,0.00020821,2]
[368316440,1751113851203,-506.82,0.00020821,2]
[368316441,1751113851212,-460.0,0.00020821,2]
[368316442,1751113851222,-18288.517,0.000209,2]
[368316443,1751113851232,-6069.56233127,0.00020934,4]
[368316444,1751113851241,-366.1706175,0.00020986,2]
[368316445,1751113851250,-366.1706175,0.00020986,2]
[368316446,1751113851262,-3330.0,0.00020998,2]
[368316447,1751113851271,-151.0,0.00021,2]
[368316448,1751113851281,-151.0,0.00021,2]
[368316449,1751113851290,-269.1667008,0.00021,2]
[368316450,1751113851300,-5209.47194379,0.00021,2]
[368316451,1751113851309,-201.33996909,0.00021,2]
[368316452,1751113851319,-1960.132818,0.00021095,2]
[368316453,1751113851328,-1960.132818,0.00021095,2]
[368316454,1751113851337,-151.0,0.00021095,2]
[368316455,1751113851347,-151.0,0.00021095,2]
[368316456,1751113851356,-240.142468,0.00021095,2]
[368316457,1751113851365,-443.40854635,0.00021095,2]
[368316458,1751113851374,-87.98373128,0.00021095,2]
[368316459,1751113851983,-250.85252126,0.00019178,2]
[368316460,1751113854167,-209.14747874,0.00019178,2]
[368316461,1751113854189,-127.31683279,0.00019178,2]
[368316462,1751113948803,-500.0,0.00018175,2]
[368316463,1751113948838,-500.0,0.00018175,2]
[368316464,1751113948872,-500.0,0.00018175,2]
[368316465,1751113948904,-500.0,0.00018175,2]
[368316466,1751113949059,-263.37626313,0.00018175,2]
[368316467,1751113949094,-500.0,0.00018175,2]
[368316468,1751113949130,-500.0,0.00018175,2]
[368316469,1751113949164,-500.0,0.00018175,2]
[368316470,1751113949197,-250.0,0.00018175,2]
[368316471,1751113949229,-500.0,0.00018175,2]
[368316472,1751113949262,-500.0,0.00018175,2]
[368316473,1751113949295,-500.0,0.00018175,2]
[368316474,1751113949330,-500.0,0.00018175,2]
[368316475,1751113949362,-500.0,0.00018175,2]
[368316476,1751113949394,-500.0,0.00018175,2]
[368316477,1751113949426,-500.0,0.00018175,2]
[368316478,1751113949465,-500.0,0.00018175,2]
[368316479,1751113949514,-500.0,0.00018175,2]
[368316480,1751113949546,-585.70782693,0.00018175,2]
[368316481,1751113949579,-500.0,0.00018175,2]
[368316482,1751113949614,-500.0,0.00018175,2]
[368316483,1751113949647,-500.0,0.00018175,2]
[368316484,1751113949679,-500.0,0.00018175,2]
[368316485,1751113949711,-500.0,0.00018175,2]
[368316486,1751113949743,-500.0,0.00018175,2]
[368316487,1751113949776,-500.0,0.00018175,2]
[368316488,1751113949808,-500.0,0.00018175,2]
[368316489,1751113949845,-500.0,0.00018175,2]
[368316490,1751113949897,-500.0,0.00018175,2]
[368316491,1751113949952,-500.0,0.00018175,2]
[368316492,1751113950005,-500.0,0.00018175,2]
[368316493,1751113950051,-500.0,0.00018175,2]
[368316494,1751113950104,-500.0,0.00018175,2]
[368316495,1751113950152,-500.0,0.00018175,2]
[368316496,1751113950203,-500.0,0.00018175,2]
[368316497,1751113950249,-500.0,0.00018175,2]
[368316498,1751113950293,-500.0,0.00018175,2]
[368316499,1751113950337,-500.0,0.00018175,2]
[368316500,1751113950379,-500.0,0.00018175,2]
[368316501,1751113950421,-500.0,0.00018175,2]
[368316502,1751113950463,-500.0,0.00018175,2]
[368316503,1751113950508,-250.0,0.00018175,2]
[368316504,1751114004993,160.0,0.00018175,2]
[368316505,1751114057017,5000.0,0.0001848,2]
[368316506,1751114061232,4141.83181988,0.00018177,2]
[368316507,1751114194362,223.551495,0.00017631,2]
[368316508,1751114194707,775.95127388,0.00017632,2]
[368316509,1751114217291,200.57998949,6.8e-07,2]
[368316510,1751114238006,460.0,0.00024658,120]
[368316511,1751114244378,817.1827342,0.00017827,2]
[368316512,1751114347650,10000.0,0.00017827,2]
[368316513,1751114391657,3097.067673,0.00017785,2]
[368316514,1751114496344,487.92591383,0.00017632,2]
[368316515,1751114674983,-327.0,0.00025,120]
[368316516,1751114798180,292.7555483,0.00017632,2]
[368316517,1751114834098,-645.04528512,0.00018174,2]
[368316518,1751114841985,169.3099609,0.0001774,2]
[368316521,1751114930943,332.114188,0.00013699,2]
[368316556,1751115032672,-554.95471488,0.00018174,2]
[368316558,1751115032682,-300.0,0.00018174,2]
[368316560,1751115032691,-256.0,0.00018174,2]
[368316562,1751115032700,-300.0,0.00018174,2]
[368316564,1751115032710,-349.74236379,0.00018174,2]
[368316595,1751115038428,-850.25763621,0.00018174,2]
[368316597,1751115038441,-252.0,0.00018174,2]
[368316599,1751115038453,-1000.0,0.00018176,2]
[368316601,1751115038465,-500.0,0.00018176,2]